bitfinex/quotes_ETHUSD_20250511
["timestamp","ask_amount","ask_price","bid_price","bid_amount"]
[1746966101643,0.132635,2519.7,2519.5,2.651]
[1746966102040,0.0444184,2519.8,2519.5,2.651]
[1746966102203,0.132635,2519.6,2519.5,2.651]
[1746966102706,3.96879528,2519.7,2519.5,2.651]
[1746966102906,0.17456986,2519.6,2519.5,2.651]
[1746966104644,0.13015146,2519.6,2519.5,2.651]
[1746966105145,0.13011439,2519.6,2519.5,2.651]
[1746966105443,0.0444184,2519.8,2519.1,14.282]
[1746966105619,4.09902699,2519.6,2519.3,2.651]
[1746966105820,0.0444184,2519.5,2519.3,2.651]
[1746966106313,0.13011439,2519.4,2519.3,2.651]
[1746966106717,5.79148794,2519.4,2519.2,2.651]
[1746966106918,0.0444184,2519.3,2519.2,2.651]
[1746966107535,0.17453279,2519.3,2519.2,2.651]
[1746966108137,0.17453279,2519.3,2519.2,3.4398]
[1746966108306,0.13011439,2519.3,2519.2,3.4398]
[1746966108506,0.0444184,2519.6,2519.2,3.4398]
[1746966108827,0.34024392,2519.6,2519.2,3.4398]
[1746966109147,0.13011439,2519.5,2519.2,2.651]
[1746966109450,4.09923356,2519.5,2519.2,2.651]
[1746966109655,3.96937181,2519.3,2519.1,14.282]
[1746966109891,0.8084,2519.4,2519.3,2.652]
[1746966110482,0.93851439,2519.4,2519.3,2.652]
[1746966110895,0.13011439,2519.4,2519.3,2.652]
[1746966111253,3.96907711,2519.5,2519.3,2.652]
[1746966111452,0.13011439,2519.4,2519.3,2.652]
[1746966111663,4.0993134,2519.4,2519.3,2.652]
[1746966111864,4.1437318,2519.4,2519.3,2.652]
[1746966112788,0.17453279,2519.4,2519.1,16.934]
[1746966113450,0.13011439,2519.4,2519.1,16.934]
[1746966114089,0.0444184,2519.3,2519.1,16.934]
[1746966114286,0.0444184,2519.3,2519.1,14.282]
[1746966114602,0.0444184,2519.3,2519.2,2.652]
[1746966114750,0.13011439,2519.2,2519.1,14.282]
[1746966114950,0.0444184,2519.4,2519.1,16.934]
[1746966115185,0.13011439,2519.2,2519.1,16.934]
[1746966115359,8.0,2519.3,2519.1,16.934]
[1746966115712,0.17453279,2519.2,2518.7,0.7888]
[1746966115865,8.0,2518.9,2518.4,0.7811]
[1746966116045,3.97032669,2518.7,2518.3,2.652]
[1746966116250,0.0444184,2518.6,2518.3,2.652]
[1746966116661,0.12633232,2518.5,2518.3,2.652]
[1746966117766,0.12633232,2518.5,2518.4,0.81330977]
[1746966117965,0.0444184,2519.0,2518.4,0.81330977]
[1746966118145,0.0444184,2519.0,2518.5,2.651]
[1746966118551,0.0444184,2519.0,2518.6,2.652]
[1746966118787,0.0444184,2519.0,2518.4,0.7736]
[1746966118961,0.0444184,2519.0,2518.7,2.652]
[1746966119266,8.0,2518.8,2518.1,0.7736]
[1746966119458,8.0,2518.8,2518.2,2.652]
[1746966119459,0.0444184,2518.7,2518.2,2.652]
[1746966119868,8.0,2518.5,2518.2,2.652]
[1746966120065,0.0444184,2518.4,2517.5,14.283]
[1746966120269,14.81803088,2518.4,2517.6,6.0766]
[1746966120488,8.0,2518.2,2517.6,6.0766]
[1746966120678,0.0444184,2518.1,2517.6,6.0766]
[1746966121087,0.0444184,2518.2,2517.6,6.0766]
[1746966121674,0.0444184,2518.2,2517.7,0.7736]
[1746966122324,0.0444184,2518.3,2517.7,0.7736]
[1746966122728,3.97134805,2518.1,2517.5,14.283]
[1746966123029,4.0159117,2518.0,2517.8,2.652]
[1746966123232,3.9715636,2517.9,2517.8,2.652]
[1746966123387,3.97174516,2517.8,2517.6,2.652]
[1746966123587,0.0444184,2517.7,2517.5,16.935]
[1746966123898,4.72226415,2517.7,2517.5,14.283]
[1746966124121,0.0444184,2517.6,2517.5,14.283]
[1746966124637,0.0444184,2517.6,2517.4,2.652]
[1746966125057,4.01652259,2517.6,2517.4,2.652]
[1746966125257,4.01652259,2517.6,2516.8,0.8253]
[1746966125428,4.01652259,2517.6,2516.9,5.303]
[1746966125612,3.97223433,2517.5,2516.8,0.8253]
[1746966125813,0.0444184,2517.4,2516.9,2.653]
[1746966126115,0.7524,2517.2,2516.6,2.653]
[1746966126344,0.0444184,2517.1,2516.6,2.653]
[1746966126851,0.0444184,2517.2,2516.7,0.8189]
[1746966128242,0.0444184,2517.3,2516.7,0.8189]
[1746966128424,0.0444184,2517.3,2516.7,1.16609]
[1746966128924,0.0444184,2517.3,2516.8,2.652]
[1746966129125,5.32308078,2517.2,2516.0,0.7589]
[1746966129349,0.0444184,2517.1,2516.2,8.0]
[1746966129535,4.0173174,2517.1,2516.2,8.0]
[1746966129739,0.11141151,2517.0,2516.2,8.0]
[1746966129958,0.0444184,2516.9,2516.3,2.69173881]
[1746966130268,0.0444184,2516.9,2516.3,2.652]
[1746966130474,0.11141151,2516.8,2516.3,2.652]
[1746966130768,0.0444184,2517.1,2516.3,2.652]
[1746966130960,0.11141151,2516.7,2516.3,2.652]
[1746966131161,0.0444184,2517.1,2516.3,3.1824]
[1746966131364,0.11141151,2517.0,2516.3,3.1824]
[1746966131563,0.0444184,2516.9,2516.3,3.1824]
[1746966131871,0.10750573,2516.8,2516.3,3.1824]
[1746966132077,4.01799998,2516.7,2516.0,0.7589]
[1746966132380,4.77406157,2516.6,2516.0,2.652]
[1746966132538,4.12574884,2516.5,2516.0,2.652]
[1746966132739,6.0207122,2516.5,2516.0,2.652]
[1746966133270,2.04688749,2516.5,2516.0,2.652]
[1746966133478,2.04688749,2516.5,2515.8,14.288]
[1746966133687,0.8004,2516.2,2515.5,2.652]
[1746966133842,3.97483333,2515.9,2515.5,2.652]
[1746966134036,4.77554005,2515.7,2514.0,0.19408915]
[1746966134236,3.97662117,2514.7,2514.0,0.7589]
[1746966134469,0.0444184,2514.6,2514.0,0.79867292]
[1746966134778,0.8004,2515.0,2514.0,3.48167292]
[1746966134779,0.0444184,2514.9,2514.0,3.48167292]
[1746966134973,0.8448184,2515.0,2514.0,0.79867292]
[1746966135274,0.0444184,2514.8,2514.1,2.653]
[1746966135477,10.0944184,2514.8,2514.1,2.653]
[1746966135682,3.97706478,2514.5,2513.7,0.7589]
[1746966135977,0.55,2514.3,2513.4,2.653]
[1746966136168,14.07197594,2514.2,2513.4,2.653]
[1746966136370,1.40719759,2514.1,2513.4,2.653]
[1746966136539,0.13779209,2514.0,2513.4,2.653]
[1746966136743,0.09337369,2514.0,2513.5,0.03978675]
[1746966136980,10.05,2514.2,2513.5,0.03978675]
[1746966136981,10.05,2514.2,2513.6,3.4599]
[1746966137177,0.08063458,2514.1,2513.7,0.03977725]
[1746966137343,0.08063458,2514.1,2513.6,0.7589]
[1746966137344,0.08063458,2514.1,2513.8,2.653]
[1746966137550,0.08063458,2514.1,2513.9,0.30507632]
[1746966137781,10.05,2514.2,2513.9,0.2653]
[1746966137945,3.78848184,2514.9,2514.0,2.708]
[1746966137946,0.0444184,2514.6,2514.0,2.708]
[1746966138145,0.0444184,2514.8,2514.1,0.0397703]
[1746966138351,0.0444184,2514.8,2514.2,2.654]
[1746966138546,0.0444184,2515.0,2514.3,0.86376794]
[1746966139146,0.0444184,2515.0,2514.3,0.824]
[1746966139346,0.0444184,2515.0,2514.4,0.03976566]
[1746966139679,0.0444184,2515.3,2514.3,8.824]
[1746966139885,0.0444184,2515.7,2514.5,0.824]
[1746966140076,3.458,2516.2,2514.7,0.824]
[1746966140381,0.75,2515.7,2514.6,2.654]
[1746966140686,0.0444184,2515.6,2514.7,8.03976178]
[1746966141387,0.0444184,2515.6,2514.8,2.654]
[1746966142170,0.0444184,2515.6,2515.0,0.824]
[1746966142372,0.7944184,2516.0,2515.0,0.824]
[1746966142582,1.11902184,2515.9,2515.1,0.03975528]
[1746966142885,0.0444184,2515.8,2515.0,1.9718]
[1746966143666,0.0444184,2516.0,2515.0,1.9718]
[1746966143855,0.0444184,2516.0,2515.1,8.0]
[1746966144058,0.0444184,2516.3,2515.2,0.7648]
[1746966144257,0.8020184,2516.4,2515.4,8.0]
[1746966144492,0.8020184,2516.4,2515.5,3.33456633]
[1746966145262,0.0444184,2516.4,2515.5,3.33456633]
[1746966145664,0.0444184,2516.4,2515.6,0.7648]
[1746966146268,10.05,2516.5,2515.6,0.7648]
[1746966146269,10.05,2516.5,2515.7,0.03974304]
[1746966146599,10.05,2516.5,2515.6,8.7648]
[1746966146763,10.05,2516.5,2515.7,1.1478]
[1746966147899,10.05,2516.5,2515.8,0.03974091]
[1746966148102,0.08108837,2516.4,2515.9,2.727]
[1746966148395,0.0444184,2516.9,2515.9,2.727]
[1746966148697,0.09036736,2516.8,2516.0,0.03973807]
[1746966148893,0.09036736,2516.8,2516.1,3.4576]
[1746966149072,0.09036736,2516.8,2516.2,0.03973712]
[1746966150086,0.09036736,2516.8,2516.3,2.654]
[1746966150288,0.09036736,2516.8,2516.4,0.03973853]
[1746966150676,10.05,2517.5,2516.5,0.8272]
[1746966150986,0.7955,2517.6,2516.6,0.44362158]
[1746966150987,0.0444184,2517.4,2516.6,0.44362158]
[1746966151159,0.08517929,2517.3,2516.6,0.40389252]
[1746966151359,0.0444184,2517.9,2516.7,0.58972717]
[1746966151573,0.0444184,2518.0,2517.0,0.8272]
[1746966151865,0.0444184,2518.3,2517.2,8.0]
[1746966152071,0.0444184,2518.5,2517.4,0.8272]
[1746966152284,0.0444184,2518.5,2517.6,8.0]
[1746966152495,0.0444184,2518.5,2517.7,2.654]
[1746966152885,3.97089738,2518.4,2517.7,2.654]
[1746966153094,3.97132746,2518.1,2517.7,2.653]
[1746966153395,0.0444184,2518.0,2517.7,2.653]
[1746966153775,3.97165318,2517.9,2517.0,0.7501]
[1746966154095,0.0444184,2517.8,2517.5,2.653]
[1746966154300,4.01566656,2518.1,2517.5,2.653]
[1746966154593,0.45656666,2518.0,2517.5,2.653]
[1746966154792,0.0444184,2517.9,2517.5,2.653]
[1746966157111,4.52120323,2518.2,2517.5,2.653]
[1746966157112,0.0444184,2518.0,2517.5,2.653]
[1746966157285,0.0444184,2518.1,2517.6,0.03972283]
[1746966157489,0.0444184,2518.1,2517.5,2.653]
[1746966157715,0.0444184,2518.1,2517.6,0.2653]
[1746966158302,0.0444184,2518.2,2517.6,0.2653]
[1746966158491,0.0444184,2518.2,2517.5,2.653]
[1746966158492,4.0156021,2518.2,2517.5,2.653]
[1746966158692,0.0444184,2518.2,2517.5,2.653]
[1746966159515,0.0444184,2518.2,2517.5,2.69271889]
[1746966159816,0.29504005,2518.7,2517.5,2.69271889]
[1746966159817,10.05,2518.7,2517.6,8.7819]
[1746966160025,0.0444184,2518.6,2517.6,8.7819]
[1746966160215,0.0444184,2518.6,2517.7,1.14349]
[1746966161819,0.0444184,2518.6,2517.8,0.03970848]
[1746966162027,0.0444184,2518.6,2517.7,1.14349]
[1746966162525,10.0944184,2518.7,2517.7,1.14349]
[1746966162839,10.8496,2519.2,2517.8,0.55]
[1746966163134,0.0444184,2519.1,2517.9,0.7819]
[1746966163313,0.0444184,2519.1,2518.1,8.0]
[1746966163658,0.0444184,2519.1,2518.2,3.40387633]
[1746966164490,0.0444184,2519.1,2518.2,0.68487633]
[1746966164694,0.0444184,2519.1,2518.3,2.719]
[1746966165418,0.0444184,2519.1,2518.4,0.7819]
[1746966166194,0.7996,2519.2,2518.5,0.03969983]
[1746966166399,14.01879359,2519.7,2518.5,0.03969983]
[1746966166400,0.7996,2519.5,2518.5,0.03969983]
[1746966166617,0.08078878,2519.1,2518.4,8.7819]
[1746966166933,0.0444184,2519.4,2518.5,1.15009]
[1746966167119,0.08779513,2519.0,2518.5,1.15009]
[1746966167317,0.0444184,2519.4,2518.5,1.15009]
[1746966167522,0.08779513,2518.9,2518.5,1.15009]
[1746966167711,0.0444184,2519.4,2518.5,1.15009]
[1746966167914,0.08779513,2518.8,2518.6,0.67827633]
[1746966168243,0.0444184,2519.4,2518.6,0.67827633]
[1746966168409,0.08779513,2519.3,2518.6,0.67827633]
[1746966168826,4.05728432,2519.3,2518.6,3.38427633]
[1746966169010,4.01394227,2519.2,2518.6,3.38427633]
[1746966169205,0.0444184,2519.2,2518.6,3.38427633]
[1746966169411,0.08808082,2519.1,2518.6,3.38427633]
[1746966169999,0.08808082,2519.1,2518.3,2.719]
[1746966170000,0.7788,2519.0,2518.1,0.7948]
[1746966170234,0.13298339,2518.9,2518.3,8.0]
[1746966171640,0.08856499,2518.9,2518.3,8.0]
[1746966171939,0.0444184,2519.2,2518.3,8.0]
[1746966172140,0.08856499,2518.8,2518.3,8.0]
[1746966172340,0.0444184,2519.2,2518.4,1.3422]
[1746966172547,0.08856499,2518.7,2518.4,1.3422]
[1746966172840,0.0444184,2519.2,2518.4,1.3422]
[1746966173005,0.08856499,2519.1,2518.4,1.3422]
[1746966175145,0.13298339,2519.1,2518.4,1.3422]
[1746966175450,0.08834156,2519.0,2518.5,2.718]
[1746966176507,0.0444184,2519.2,2518.5,2.718]
[1746966176707,0.7788,2519.3,2518.5,2.718]
[1746966176708,0.08834156,2518.9,2518.5,2.718]
[1746966176904,0.8232184,2519.3,2518.5,2.718]
[1746966177110,0.08834156,2518.8,2518.5,2.718]
[1746966177338,0.8232184,2519.3,2518.6,0.542]
[1746966177504,0.08834156,2518.7,2518.6,0.542]
[1746966177711,0.8232184,2519.3,2518.6,0.542]
[1746966177906,0.7788,2519.3,2518.6,0.542]
[1746966178106,0.08834156,2519.2,2518.6,0.542]
[1746966178307,0.08834156,2519.2,2518.7,0.326]
[1746966180421,0.08834156,2519.2,2518.7,1.1292]
[1746966180622,0.8142184,2520.0,2518.9,0.55]
[1746966180821,0.08312067,2519.9,2519.1,8.55]
[1746966181128,0.7698,2520.3,2519.1,8.55]
[1746966181129,0.7698,2520.3,2519.3,0.8032]
[1746966181347,0.7698,2520.3,2519.4,0.39576931]
[1746966181531,0.08312067,2520.2,2519.5,0.55]
[1746966181853,0.08312067,2520.2,2519.7,8.0]
[1746966182018,0.08312067,2520.2,2519.8,2.718]
[1746966182220,0.7698,2520.3,2519.8,2.718]
[1746966182421,0.0794521,2520.2,2519.9,0.60427821]
[1746966182620,0.7698,2520.3,2519.9,0.60427821]
[1746966182822,0.0794521,2520.2,2519.9,0.60427821]
[1746966183054,0.7698,2520.3,2519.9,0.60427821]
[1746966183255,0.0794521,2520.2,2519.9,0.60427821]
[1746966183452,0.7698,2520.3,2520.0,0.33222782]
[1746966183627,0.0794521,2520.2,2519.7,8.0]
[1746966183834,0.0794521,2520.2,2519.8,2.717]
[1746966184029,0.7698,2520.3,2519.8,2.717]
[1746966184235,0.0794521,2520.2,2519.8,2.717]
[1746966184448,0.8142184,2520.3,2519.8,2.717]
[1746966184658,0.0794521,2520.2,2519.9,1.38048077]
[1746966184983,0.0444184,2520.5,2519.9,2.17288077]
[1746966185345,0.0794521,2520.4,2519.9,10.17288077]
[1746966185735,0.0794521,2520.4,2519.9,10.1332]
[1746966186057,4.78396271,2520.6,2519.9,10.1332]
[1746966186258,0.0794521,2520.5,2519.9,10.1332]
[1746966186560,0.1238705,2520.5,2519.9,10.1332]
[1746966186759,0.1238705,2520.5,2520.0,0.48756633]
[1746966187670,0.0794521,2520.5,2520.0,0.48756633]
[1746966187856,0.0444184,2520.4,2520.0,0.48756633]
[1746966188057,0.08191145,2520.3,2520.1,2.717]
[1746966188257,0.08191145,2520.3,2520.0,0.48756633]
[1746966188571,0.0444184,2520.5,2520.2,2.717]
[1746966188756,0.08191145,2520.2,2519.6,0.7582]
[1746966188936,0.0444184,2520.5,2519.8,2.691]
[1746966189137,0.0818742,2520.1,2519.8,2.691]
[1746966189342,4.0119966,2520.5,2519.8,2.691]
[1746966189530,0.0818742,2520.0,2519.8,2.691]
[1746966189730,4.0119966,2520.5,2519.8,2.691]
[1746966189927,0.0818742,2519.9,2519.8,2.691]
[1746966190143,3.96775654,2520.4,2519.7,6.25382]
[1746966190345,0.0818742,2519.9,2519.7,5.378]
[1746966190662,0.0818742,2519.8,2519.7,13.378]
[1746966190863,4.0122425,2520.3,2519.7,13.378]
[1746966191162,0.0818742,2520.2,2519.7,13.378]
[1746966191833,0.08131536,2520.1,2519.8,2.69]
[1746966192041,0.0444184,2520.4,2519.8,4.10332]
[1746966192241,0.08131536,2520.3,2519.8,4.10332]
[1746966193172,0.12573376,2520.3,2519.8,4.10332]
[1746966193334,0.0444184,2520.3,2519.8,4.10332]
[1746966193534,0.08131536,2520.2,2519.8,4.10332]
[1746966193864,0.0444184,2520.4,2519.8,4.10332]
[1746966194166,0.08131536,2520.3,2519.8,4.10332]
[1746966194564,0.08131536,2520.3,2519.8,2.69]
[1746966194770,0.12573376,2520.3,2519.8,2.69]
[1746966194952,0.12573376,2520.3,2519.7,8.0]
[1746966195270,3.9683913,2520.0,2519.5,2.69]
[1746966195467,0.12755983,2519.9,2519.5,2.69]
[1746966196076,0.08314143,2519.9,2519.5,2.69]
[1746966196246,0.0444184,2520.1,2519.5,2.69]
[1746966196437,0.08280609,2520.0,2519.5,2.69]
[1746966198372,3.96846352,2519.9,2519.5,2.69]
[1746966198564,0.12722449,2520.0,2519.5,2.69]
[1746966198768,0.0444184,2520.1,2519.5,2.69]
[1746966198968,0.08280609,2519.9,2519.5,2.69]
[1746966199269,0.08280609,2519.8,2519.5,2.69]
[1746966199770,0.08280609,2519.8,2519.6,0.0396843]
[1746966199987,0.0444184,2520.2,2519.5,2.69]
[1746966200157,0.08280609,2519.7,2519.5,2.69]
[1746966200457,0.0444184,2520.3,2519.6,8.8324]
[1746966200642,0.08224714,2520.2,2519.6,8.87208229]
[1746966200836,0.8272184,2520.7,2519.6,8.87208229]
[1746966201042,4.05001896,2520.6,2519.6,8.8324]
[1746966201367,0.0444184,2520.5,2519.7,1.15224]
[1746966202362,0.0444184,2520.5,2519.6,0.8324]
[1746966203288,0.0444184,2520.5,2519.7,5.363]
[1746966203444,0.0444184,2520.6,2519.8,0.03967925]
[1746966204171,8.0,2520.4,2519.9,2.69]
[1746966204485,0.0444184,2520.3,2519.6,0.8324]
[1746966204701,0.88065125,2520.2,2519.7,2.69]
[1746966205010,0.0444184,2520.1,2519.7,2.69]
[1746966205140,0.0444184,2520.1,2519.8,2.69]
[1746966205342,0.08332772,2520.0,2519.8,2.959]
[1746966205772,0.0444184,2520.4,2519.8,2.959]
[1746966205942,0.88061397,2519.9,2519.8,2.69]
[1746966206575,0.08351397,2519.9,2519.8,2.69]
[1746966206972,4.80947623,2520.2,2519.8,2.69]
[1746966207172,0.08325316,2519.9,2519.8,2.69]
[1746966207351,3.96834961,2520.0,2519.4,16.973]
[1746966207552,0.12767156,2519.9,2519.4,16.973]
[1746966209661,0.08325316,2519.9,2519.5,0.7559]
[1746966209867,10.05,2520.2,2519.5,0.7559]
[1746966210067,0.08239612,2520.1,2519.6,2.672]
[1746966211484,0.08239612,2520.1,2519.7,0.7559]
[1746966211687,0.08239612,2520.1,2519.8,0.34279]
[1746966211896,0.08239612,2520.1,2519.9,0.03967944]
[1746966212094,0.08239612,2520.1,2520.0,2.69]
[1746966213373,0.0444184,2520.9,2520.1,0.8049]
[1746966213689,0.0837375,2520.8,2520.2,3.05616173]
[1746966213869,8.0,2520.8,2520.2,2.667]
[1746966214066,0.1281559,2520.7,2520.2,2.667]
[1746966214272,0.0837375,2520.7,2520.2,2.667]
[1746966214494,0.1281559,2520.7,2520.2,2.667]
[1746966214664,0.7905,2520.6,2520.2,2.667]
[1746966215060,0.0837375,2520.5,2520.2,2.667]
[1746966215297,0.1281559,2520.5,2520.2,2.667]
[1746966215593,0.0837375,2520.5,2520.2,2.667]
[1746966216917,0.0444184,2520.4,2519.9,0.8049]
[1746966217085,0.0444184,2520.4,2520.2,2.69]
[1746966217409,0.08586087,2520.3,2520.2,2.69]
[1746966218481,0.0444184,2520.5,2520.2,2.69]
[1746966218879,0.08586087,2520.4,2520.2,2.69]
[1746966219488,0.08586087,2520.4,2520.0,2.659]
[1746966220694,0.08586087,2520.4,2520.1,2.659]
[1746966223618,4.93909557,2520.4,2519.6,0.8049]
[1746966223824,0.7905,2520.2,2519.8,2.659]
[1746966224000,0.12916171,2520.1,2519.8,2.659]
[1746966224201,0.08474331,2520.1,2519.9,0.03968431]
[1746966224426,8.0,2520.4,2519.9,0.03968431]
[1746966224427,8.0444184,2520.4,2519.9,0.8049]
[1746966224615,0.08474331,2520.3,2519.9,1.15129]
[1746966225833,0.7905,2520.1,2519.7,2.659]
[1746966226131,0.7905,2520.1,2519.4,15.0879]
[1746966226132,0.8227,2519.6,2519.4,14.283]
[1746966226317,0.0444184,2519.5,2519.2,2.659]
[1746966226827,0.08474331,2519.4,2519.2,2.659]
[1746966228142,0.08474331,2519.4,2519.2,2.9249]
[1746966228447,0.8227,2519.6,2519.2,2.9249]
[1746966228627,0.08474331,2519.5,2519.2,2.9249]
[1746966230240,8.0444184,2519.8,2519.2,2.9249]
[1746966230415,0.08131523,2519.7,2519.3,0.8205]
[1746966230613,8.0444184,2519.8,2519.3,0.8205]
[1746966230921,0.08131523,2519.7,2519.3,0.8205]
[1746966231119,0.08131523,2519.7,2519.4,0.0396906]
[1746966231344,10.05,2519.9,2519.5,0.8205]
[1746966231501,0.08131523,2519.6,2519.5,0.8205]
[1746966231706,0.0444184,2520.4,2519.5,0.8205]
[1746966231907,0.08131523,2520.3,2519.5,0.8205]
[1746966232243,0.08131523,2520.3,2519.6,0.34765]
[1746966234357,0.08131523,2520.3,2519.7,2.656]
[1746966234542,0.08131523,2520.3,2519.8,2.659]
[1746966235147,8.08131523,2520.3,2519.8,2.659]
[1746966235312,0.0444184,2520.2,2519.8,2.659]
[1746966235512,0.08112894,2520.1,2519.8,2.659]
[1746966237315,0.08112894,2520.1,2519.9,0.5315]
[1746966237544,0.0444184,2520.4,2519.8,2.659]
[1746966237843,0.8509184,2520.5,2519.9,0.03968231]
[1746966238020,0.08112894,2520.4,2519.9,0.03968231]
[1746966238615,0.08112894,2520.4,2519.8,2.659]
[1746966240248,0.0444184,2520.3,2519.8,2.659]
[1746966240544,8.0,2519.9,2519.2,0.8212]
[1746966240716,0.0444184,2519.8,2519.2,0.8212]
[1746966240918,0.0444184,2519.8,2519.4,2.659]
[1746966241118,0.08355119,2519.7,2519.4,2.659]
[1746966241453,0.08355119,2519.6,2519.4,2.659]
[1746966241640,8.0444184,2519.9,2519.4,2.659]
[1746966241838,0.08355119,2519.8,2519.4,2.659]
[1746966243466,1.37258136,2519.8,2519.4,2.659]
[1746966243756,8.0444184,2519.7,2519.4,2.659]
[1746966244050,0.08247059,2519.6,2519.4,2.659]
[1746966244229,0.7707,2519.5,2519.3,14.279]
[1746966244433,0.8151184,2519.5,2519.3,14.279]
[1746966244744,0.08247059,2519.4,2519.3,14.279]
[1746966245341,0.0444184,2519.7,2519.3,14.279]
[1746966245543,0.08247059,2519.4,2519.3,14.279]
[1746966245743,8.7707,2519.8,2519.3,14.279]
[1746966245744,8.0,2519.8,2519.3,14.279]
[1746966245951,0.08247059,2519.4,2519.3,14.279]
[1746966246125,0.0444184,2519.7,2519.3,14.279]
[1746966246463,0.08247059,2519.6,2519.3,14.279]
[1746966247042,8.0,2519.8,2519.4,0.8283]
[1746966247250,0.08247059,2519.7,2519.4,0.8283]
[1746966247562,8.0444184,2519.8,2519.4,0.8283]
[1746966247757,0.08247059,2519.6,2519.4,0.8283]
[1746966247953,8.0,2520.1,2519.4,0.8679875]
[1746966248120,0.08247059,2519.5,2519.4,0.8679875]
[1746966248325,8.0,2520.1,2519.4,0.8283]
[1746966248543,0.08168793,2520.0,2519.4,3.4833]
[1746966250551,0.0444184,2519.9,2519.4,3.4833]
[1746966250861,0.0444184,2519.9,2519.3,14.279]
[1746966250862,0.90907644,2519.8,2519.5,2.655]
[1746966251061,0.0444184,2519.7,2519.5,2.655]
[1746966251357,0.8719184,2519.8,2519.5,2.655]
[1746966251565,0.08157644,2519.6,2519.5,2.655]
[1746966251741,0.8275,2519.8,2519.5,2.655]
[1746966251927,0.08157644,2519.6,2519.5,3.4833]
[1746966252133,0.8275,2520.7,2519.6,0.8283]
[1746966252330,0.0444184,2520.8,2519.7,0.86797745]
[1746966252637,10.05,2520.9,2519.7,0.86797745]
[1746966252638,10.0944184,2520.9,2519.7,0.86797745]
[1746966252959,14.06136794,2520.9,2519.7,0.8283]
[1746966253160,8.0,2520.8,2519.8,0.93783]
[1746966253327,10.05,2520.9,2519.9,3.433]
[1746966253528,10.0944184,2520.9,2520.0,0.03967364]
[1746966253740,10.0944184,2520.9,2520.1,3.433]
[1746966253950,10.0944184,2520.9,2520.2,0.03967364]
[1746966254150,11.58328815,2520.9,2520.1,3.433]
[1746966254358,8.0,2520.8,2520.1,3.433]
[1746966254601,0.0444184,2520.7,2520.1,3.433]
[1746966255574,4.01161142,2520.7,2520.1,3.433]
[1746966255871,0.0444184,2520.7,2520.1,3.433]
[1746966256077,0.0444184,2520.7,2520.1,4.0418]
[1746966257076,4.01167236,2520.7,2520.1,4.0418]
[1746966257595,3.9674518,2520.6,2520.1,4.0418]
[1746966257750,0.0444184,2520.5,2520.1,4.0418]
[1746966257950,8.0,2520.8,2520.1,4.0418]
[1746966257951,4.01167089,2520.7,2520.1,1.3868]
[1746966258182,3.9674761,2520.5,2520.2,2.655]
[1746966258371,0.0444184,2520.4,2520.2,2.655]
[1746966258767,0.0444184,2520.4,2519.8,0.8302]
[1746966258985,3.96786657,2520.3,2519.9,2.655]
[1746966259282,3.96786657,2520.3,2519.3,22.279]
[1746966259283,3.96825396,2520.0,2519.6,2.655]
[1746966259460,0.0444184,2519.9,2519.6,2.655]
[1746966259786,0.0444184,2520.2,2519.6,3.00352]
[1746966260684,0.0444184,2520.3,2519.6,3.00352]
[1746966260978,4.01220088,2520.3,2519.6,3.00352]
[1746966261181,10.8726,2520.4,2519.7,0.03968339]
[1746966261403,0.0444184,2520.3,2519.8,0.8302]
[1746966261569,0.0444184,2520.3,2519.8,1.21754034]
[1746966261884,3.96794766,2520.2,2519.8,0.8302]
[1746966262194,0.8670184,2520.1,2519.6,2.655]
[1746966262996,4.83519862,2520.1,2519.6,2.655]
[1746966263161,3.96825948,2520.0,2519.6,2.655]
[1746966263359,0.0444184,2519.9,2519.6,2.655]
[1746966264791,0.0444184,2520.0,2519.6,2.655]
[1746966265765,0.0444184,2520.1,2519.6,2.655]
[1746966266776,4.01253221,2520.1,2519.6,2.655]
[1746966266971,0.0444184,2520.1,2519.6,2.655]
[1746966267173,0.8341184,2520.3,2519.6,3.00352]
[1746966267501,0.0444184,2520.3,2519.7,0.82318619]
[1746966267697,10.0944184,2520.4,2519.7,8.82318619]
[1746966267883,10.0944184,2520.4,2519.7,8.7835]
[1746966268091,10.0944184,2520.4,2519.8,1.178702]
[1746966268808,0.0444184,2520.5,2519.8,1.178702]
[1746966269168,0.0444184,2520.5,2519.9,0.03967927]
[1746966269496,3.96790459,2520.3,2519.7,0.7835]
[1746966269808,3.96770837,2520.4,2519.7,3.4385]
[1746966269981,0.0444184,2520.3,2519.7,3.78235]
[1746966270603,0.0444184,2520.5,2519.7,3.4385]
[1746966273572,3.96793148,2520.3,2519.7,3.4385]
[1746966273773,4.01250632,2520.2,2519.7,3.4385]
[1746966273972,3.96813354,2520.1,2519.7,0.7835]
[1746966274177,4.01273273,2520.0,2519.8,2.655]
[1746966274775,0.0444184,2520.0,2519.8,2.655]
[1746966275186,0.0444184,2520.1,2519.8,2.655]
[1746966275405,0.0444184,2520.3,2519.8,2.655]
[1746966275780,4.01226411,2520.3,2519.8,2.655]
[1746966275985,1.5304138,2520.3,2519.8,2.655]
[1746966276305,5.4982886,2520.3,2519.8,2.655]
[1746966276519,3.96802366,2520.2,2519.8,2.655]
[1746966276926,0.0444184,2520.1,2519.8,2.655]
[1746966278618,10.05,2520.4,2519.9,8.8144]
[1746966278822,10.05,2520.4,2520.1,0.8144]
[1746966280913,0.0444184,2520.7,2520.1,0.8144]
[1746966281629,3.96756463,2520.5,2520.1,0.8144]
[1746966281928,0.0444184,2520.4,2520.1,0.8144]
[1746966283718,0.0444184,2520.5,2520.1,0.8144]
[1746966283881,0.92277966,2520.5,2520.1,0.8144]
[1746966285028,4.89027706,2520.5,2520.1,0.8144]
[1746966285209,0.92277966,2520.5,2519.9,0.7804]
[1746966286186,0.0444184,2520.9,2520.0,0.82007913]